fUSD/lending_fUSD_20250720
["ID","MTS","AMOUNT","RATE_DAILY","PERIOD"]
[373455026,1753014663851,-480.0,0.00019506,2]
[373455027,1753014663862,-836.95,0.00019506,2]
[373455028,1753014663872,-480.0,0.00019506,2]
[373455029,1753014663884,-480.0,0.00019506,2]
[373455030,1753014663895,-387.87927345,0.00019506,2]
[373455031,1753014663906,-480.0,0.00019506,2]
[373455032,1753014663916,-480.0,0.00019506,2]
[373455033,1753014663927,-466.26,0.00019506,2]
[373455034,1753014663938,-480.0,0.00019506,2]
[373455035,1753014663948,-870.11,0.00019506,2]
[373455036,1753014663959,-511.37,0.00019506,2]
[373455037,1753014663969,-695.17,0.00019506,2]
[373455038,1753014663979,-480.0,0.00019506,2]
[373455039,1753014663989,-480.0,0.00019506,2]
[373455040,1753014663999,-480.0,0.00019506,2]
[373455041,1753014664009,-820.22,0.00019506,2]
[373455042,1753014664019,-480.0,0.00019506,2]
[373455043,1753014664030,-480.0,0.00019506,2]
[373455044,1753014664041,-480.0,0.00019506,2]
[373455045,1753014664052,-751.71,0.00019506,2]
[373455046,1753014664063,-1085.44,0.00019506,2]
[373455047,1753014664074,-480.0,0.00019506,2]
[373455048,1753014664085,-480.0,0.00019506,2]
[373455049,1753014664095,-543.84,0.00019506,2]
[373455050,1753014664106,-480.0,0.00019506,2]
[373455051,1753014664117,-917.97,0.00019506,2]
[373455052,1753014664127,-480.0,0.00019506,2]
[373455053,1753014664139,-600.52,0.00019506,2]
[373455054,1753014664150,-1497.64,0.00019506,2]
[373455055,1753014664161,-612.49,0.00019506,2]
[373455056,1753014664173,-480.0,0.00019506,2]
[373455057,1753014664184,-1202.26,0.00019506,2]
[373455058,1753014664194,-480.0,0.00019506,2]
[373455059,1753014664205,-480.0,0.00019506,2]
[373455060,1753014664215,-480.0,0.00019506,2]
[373455061,1753014664226,-480.0,0.00019506,2]
[373455062,1753014664236,-480.0,0.00019506,2]
[373455063,1753014664246,-480.0,0.00019506,2]
[373455064,1753014664256,-642.04,0.00019506,2]
[373455065,1753014664267,-480.0,0.00019506,2]
[373455066,1753014664278,-520.78,0.00019506,2]
[373455067,1753014664288,-480.0,0.00019506,2]
[373455068,1753014664299,-496.41,0.00019506,2]
[373455069,1753014664310,-480.0,0.00019506,2]
[373455070,1753014664320,-480.0,0.00019506,2]
[373455071,1753014664331,-818.44,0.00019506,2]
[373455072,1753014664342,-480.0,0.00019506,2]
[373455073,1753014664353,-761.66,0.00019506,2]
[373455074,1753014664364,-480.0,0.00019506,2]
[373455075,1753014664374,-480.0,0.00019506,2]
[373455076,1753014664386,-480.0,0.00019506,2]
[373455077,1753014664397,-480.0,0.00019506,2]
[373455078,1753014664407,-2352.9,0.00019506,2]
[373455079,1753014664418,-480.0,0.00019506,2]
[373455080,1753014664428,-307.14312396,0.00019506,2]
[373455081,1753014664439,-480.0,0.00019506,2]
[373455082,1753014664450,-480.0,0.00019506,2]
[373455083,1753014664460,-151.8518036,0.00019506,2]
[373455084,1753014664471,-480.0,0.00019506,2]
[373455085,1753014664481,-480.0,0.00019506,2]
[373455086,1753014664491,-1713.86,0.00019506,2]
[373455087,1753014664502,-783.08,0.00019506,2]
[373455088,1753014664512,-681.27,0.00019506,2]
[373455089,1753014664523,-480.0,0.00019506,2]
[373455090,1753014664534,-1257.01,0.00019506,2]
[373455091,1753014664544,-480.0,0.00019506,2]
[373455092,1753014664554,-480.0,0.00019506,2]
[373455093,1753014664565,-785.79,0.00019506,2]
[373455094,1753014664575,-480.0,0.00019506,2]
[373455095,1753014664584,-593.27,0.00019506,2]
[373455096,1753014664595,-480.0,0.00019506,2]
[373455097,1753014664605,-823.1,0.00019506,2]
[373455098,1753014664615,-1245.21,0.00019506,2]
[373455099,1753014664625,-480.0,0.00019506,2]
[373455100,1753014664638,-480.0,0.00019506,2]
[373455101,1753014664650,-480.0,0.00019506,2]
[373455102,1753014664660,-480.0,0.00019506,2]
[373455103,1753014664671,-480.0,0.00019506,2]
[373455104,1753014664682,-480.0,0.00019506,2]
[373455105,1753014664693,-480.0,0.00019506,2]
[373455106,1753014664703,-480.0,0.00019506,2]
[373455107,1753014664713,-480.04,0.00019506,2]
[373455108,1753014664724,-480.0,0.00019506,2]
[373455109,1753014664734,-480.0,0.00019506,2]
[373455110,1753014664743,-662.76,0.00019506,2]
[373455111,1753014664753,-480.0,0.00019506,2]
[373455112,1753014664763,-719.41,0.00019506,2]
[373455113,1753014664774,-480.0,0.00019506,2]
[373455114,1753014664784,-480.0,0.00019506,2]
[373455115,1753014664794,-738.09,0.00019506,2]
[373455116,1753014664806,-724.27,0.00019506,2]
[373455117,1753014664816,-394.95,0.00019506,2]
[373455118,1753014664827,-480.0,0.00019506,2]
[373455119,1753014664838,-480.0,0.00019506,2]
[373455120,1753014664848,-520.82688625,0.00019506,2]
[373455121,1753014664859,-733.91,0.00019506,2]
[373455122,1753014664873,-480.0,0.00019506,2]
[373455123,1753014664891,-480.0,0.00019506,2]
[373455124,1753014664905,-647.33,0.00019506,2]
[373455125,1753014664917,-1454.54,0.00019506,2]
[373455126,1753014664933,-480.0,0.00019506,2]
[373455127,1753014664948,-731.29,0.00019506,2]
[373455128,1753014664962,-797.39,0.00019506,2]
[373455129,1753014664976,-480.0,0.00019506,2]
[373455130,1753014664987,-480.0,0.00019506,2]
[373455131,1753014665003,-480.0,0.00019506,2]
[373455132,1753014665018,-480.0,0.00019506,2]
[373455133,1753014665034,-599.98,0.00019506,2]
[373455134,1753014665050,-480.0,0.00019506,2]
[373455135,1753014665064,-1373.77,0.00019506,2]
[373455136,1753014665081,-480.0,0.00019506,2]
[373455137,1753014665095,-480.0,0.00019506,2]
[373455138,1753014665110,-480.0,0.00019506,2]
[373455139,1753014665124,-480.0,0.00019506,2]
[373455140,1753014665141,-2330.59,0.00019506,2]
[373455141,1753014665156,-793.43,0.00019506,2]
[373455142,1753014665169,-480.0,0.00019506,2]
[373455143,1753014665182,-480.0,0.00019506,2]
[373455144,1753014665194,-2644.46,0.00019506,2]
[373455145,1753014665208,-480.0,0.00019506,2]
[373455146,1753014665223,-6377.84,0.00019506,2]
[373455147,1753014665234,-480.0,0.00019506,2]
[373455148,1753014665246,-360.84,0.00019506,2]
[373455149,1753014665260,-480.0,0.00019506,2]
[373455150,1753014665275,-480.0,0.00019506,2]
[373455151,1753014665286,-480.0,0.00019506,2]
[373455152,1753014665298,-480.0,0.00019506,2]
[373455153,1753014665310,-865.56,0.00019506,2]
[373455154,1753014665322,-816.21,0.00019506,2]
[373455155,1753014665335,-466.04,0.00019506,2]
[373455156,1753014665346,-480.0,0.00019506,2]
[373455157,1753014665359,-480.0,0.00019506,2]
[373455158,1753014665371,-480.0,0.00019506,2]
[373455159,1753014665386,-480.0,0.00019506,2]
[373455160,1753014665399,-480.0,0.00019506,2]
[373455161,1753014665411,-480.0,0.00019506,2]
[373455162,1753014665424,-991.22,0.00019506,2]
[373455163,1753014665437,-803.64,0.00019506,2]
[373455164,1753014665449,-327.11649842,0.00019506,2]
[373455165,1753014665461,-480.0,0.00019506,2]
[373455166,1753014665475,-669.29,0.00019506,2]
[373455167,1753014665486,-2749.41,0.00019506,2]
[373455168,1753014665498,-480.0,0.00019506,2]
[373455169,1753014665511,-480.0,0.00019506,2]
[373455170,1753014665523,-480.0,0.00019506,2]
[373455171,1753014665535,-480.0,0.00019506,2]
[373455172,1753014665548,-1056.65,0.00019506,2]
[373455173,1753014665560,-480.0,0.00019506,2]
[373455174,1753014665573,-480.0,0.00019506,2]
[373455175,1753014665586,-330.5805703,0.00019506,2]
[373455176,1753014665598,-480.0,0.00019506,2]
[373455177,1753014665611,-1172.66,0.00019506,2]
[373455178,1753014665623,-480.0,0.00019506,2]
[373455179,1753014665638,-516.78,0.00019506,2]
[373455180,1753014665652,-480.0,0.00019506,2]
[373455181,1753014665665,-412.86,0.00019506,2]
[373455182,1753014665677,-480.0,0.00019506,2]
[373455183,1753014665689,-652.96,0.00019506,2]
[373455184,1753014665701,-2043.43,0.00019506,2]
[373455185,1753014665714,-480.0,0.00019506,2]
[373455186,1753014665726,-480.0,0.00019506,2]
[373455187,1753014665738,-480.0,0.00019506,2]
[373455188,1753014665750,-480.0,0.00019506,2]
[373455189,1753014665762,-442.03,0.00019506,2]
[373455190,1753014665774,-2088.09,0.00019506,2]
[373455191,1753014665787,-434.36935692,0.00019506,2]
[373455192,1753014665800,-480.0,0.00019506,2]
[373455193,1753014665812,-480.0,0.00019506,2]
[373455194,1753014665824,-649.88,0.00019506,2]
[373455195,1753014665836,-480.0,0.00019506,2]
[373455196,1753014665849,-992.75,0.00019506,2]
[373455197,1753014665861,-479.28,0.00019506,2]
[373455198,1753014665874,-480.0,0.00019506,2]
[373455199,1753014665888,-1426.32,0.00019506,2]
[373455200,1753014665901,-480.0,0.00019506,2]
[373455201,1753014665913,-1042.02,0.00019506,2]
[373455202,1753014665925,-480.0,0.00019506,2]
[373455203,1753014665937,-480.0,0.00019506,2]
[373455204,1753014665954,-947.24,0.00019506,2]
[373455205,1753014665966,-1077.74,0.00019506,2]
[373455206,1753014665978,-419.61358698,0.00019506,2]
[373455207,1753014665991,-2222.89,0.00019506,2]
[373455208,1753014666003,-806.02,0.00019506,2]
[373455209,1753014666015,-4000.2,0.00019506,2]
[373455210,1753014666027,-3738.98,0.00019506,2]
[373455211,1753014666040,-736.85,0.00019506,2]
[373455212,1753014666052,-836.43,0.00019506,2]
[373455213,1753014666064,-734.26,0.00019506,2]
[373455214,1753014666077,-618.09,0.00019506,2]
[373455215,1753014666089,-480.0,0.00019506,2]
[373455216,1753014666101,-1581.14,0.00019506,2]
[373455217,1753014666113,-5653.96,0.00019506,2]
[373455218,1753014666125,-480.0,0.00019506,2]
[373455219,1753014666138,-1818.28,0.00019506,2]
[373455220,1753014666150,-1605.03,0.00019506,2]
[373455221,1753014666163,-489.12,0.00019506,2]
[373455222,1753014666175,-626.59,0.00019506,2]
[373455223,1753014666188,-2210.19,0.00019506,2]
[373455224,1753014666201,-1392.17,0.00019506,2]
[373455225,1753014666213,-1255.43,0.00019506,2]
[373455226,1753014666225,-480.0,0.00019506,2]
[373455227,1753014666237,-480.0,0.00019506,2]
[373455228,1753014666250,-480.0,0.00019506,2]
[373455229,1753014666262,-151.0,0.00019506,2]
[373455230,1753014666274,-1424.21,0.00019506,2]
[373455231,1753014666287,-480.0,0.00019506,2]
[373455232,1753014666300,-480.0,0.00019506,2]
[373455233,1753014666312,-1719.33,0.00019506,2]
[373455234,1753014666325,-151.0,0.00019506,2]
[373455235,1753014666338,-1200.11,0.00019506,2]
[373455236,1753014666350,-480.0,0.00019506,2]
[373455237,1753014666362,-1523.7,0.00019506,2]
[373455238,1753014666374,-480.0,0.00019506,2]
[373455239,1753014666388,-480.0,0.00019506,2]
[373455240,1753014666400,-448.65,0.00019506,2]
[373455241,1753014666413,-480.0,0.00019506,2]
[373455242,1753014666426,-480.0,0.00019506,2]
[373455243,1753014666439,-480.0,0.00019506,2]
[373455244,1753014666451,-884.39,0.00019506,2]
[373455245,1753014666464,-480.0,0.00019506,2]
[373455246,1753014666476,-722.15,0.00019506,2]
[373455247,1753014666489,-1757.85,0.00019506,2]
[373455248,1753014666501,-782.86,0.00019506,2]
[373455249,1753014666515,-1726.54,0.00019506,2]
[373455250,1753014666527,-480.0,0.00019506,2]
[373455251,1753014666539,-820.43,0.00019506,2]
[373455252,1753014666552,-1010.01,0.00019506,2]
[373455253,1753014666564,-505.22,0.00019506,2]
[373455254,1753014666577,-480.0,0.00019506,2]
[373455255,1753014666590,-480.0,0.00019506,2]
[373455256,1753014666603,-309.81,0.00019506,2]
[373455257,1753014666617,-480.0,0.00019506,2]
[373455258,1753014666630,-772.32,0.00019506,2]
[373455259,1753014666645,-480.0,0.00019506,2]
[373455260,1753014666658,-2258.72,0.00019506,2]
[373455261,1753014666670,-480.0,0.00019506,2]
[373455262,1753014666683,-480.0,0.00019506,2]
[373455263,1753014666697,-480.0,0.00019506,2]
[373455264,1753014666709,-1025.46,0.00019506,2]
[373455265,1753014666723,-513.2,0.00019506,2]
[373455266,1753014666735,-480.0,0.00019506,2]
[373455267,1753014666748,-1424.86,0.00019506,2]
[373455268,1753014666760,-814.33,0.00019506,2]
[373455269,1753014666773,-1595.03,0.00019506,2]
[373455270,1753014666785,-232.70892811,0.00019506,2]
[373455271,1753014666798,-2379.81,0.00019506,2]
[373455272,1753014666810,-3370.07,0.00019506,2]
[373455273,1753014666822,-683.76,0.00019506,2]
[373455274,1753014666835,-5147.65,0.00019506,2]
[373455275,1753014666847,-480.0,0.00019506,2]
[373455276,1753014666859,-480.0,0.00019506,2]
[373455277,1753014666871,-480.0,0.00019506,2]
[373455278,1753014666884,-4765.78,0.00019506,2]
[373455279,1753014666896,-536.94,0.00019506,2]
[373455280,1753014666909,-480.0,0.00019506,2]
[373455281,1753014666924,-480.0,0.00019506,2]
[373455282,1753014666936,-1771.29,0.00019506,2]
[373455283,1753014666948,-950.1,0.00019506,2]
[373455284,1753014666960,-480.0,0.00019506,2]
[373455285,1753014666972,-480.0,0.00019506,2]
[373455286,1753014666985,-480.0,0.00019506,2]
[373455287,1753014666998,-1361.55,0.00019506,2]
[373455288,1753014667010,-1848.06,0.00019506,2]
[373455289,1753014667022,-925.91,0.00019506,2]
[373455290,1753014667035,-637.06,0.00019506,2]
[373455291,1753014667049,-151.0,0.00019506,2]
[373455292,1753014667061,-838.76,0.00019506,2]
[373455293,1753014667073,-1312.93,0.00019506,2]
[373455294,1753014667085,-4317.78,0.00019506,2]
[373455295,1753014667098,-756.37,0.00019506,2]
[373455296,1753014667111,-9271.75,0.00019506,2]
[373455297,1753014667124,-480.0,0.00019506,2]
[373455298,1753014667139,-151.0,0.00019506,2]
[373455299,1753014667152,-480.0,0.00019506,2]
[373455300,1753014667165,-692.42,0.00019506,2]
[373455301,1753014667479,-480.0,0.00019506,2]
[373455302,1753014667507,-1470.98,0.00019506,2]
[373455303,1753014667520,-1470.98,0.00019506,2]
[373455304,1753014667530,-4009.68,0.00019506,2]
[373455305,1753014667539,-863.3,0.00019506,2]
[373455306,1753014667549,-1530.7,0.00019506,2]
[373455307,1753014667558,-789.2,0.00019506,2]
[373455308,1753014667567,-398.08,0.00019506,2]
[373455309,1753014667577,-480.0,0.00019506,2]
[373455310,1753014667587,-1176.53,0.00019506,2]
[373455311,1753014667596,-841.86,0.00019506,2]
[373455312,1753014667605,-194.427389,0.00019506,2]
[373455313,1753014667615,-1432.34,0.00019506,2]
[373455314,1753014667624,-480.0,0.00019506,2]
[373455315,1753014667636,-838.11,0.00019506,2]
[373455316,1753014667651,-480.0,0.00019506,2]
[373455317,1753014667660,-151.0,0.00019506,2]
[373455318,1753014667670,-698.77,0.00019506,2]
[373455319,1753014667679,-654.3,0.00019506,2]
[373455320,1753014667689,-480.0,0.00019506,2]
[373455321,1753014667699,-480.0,0.00019506,2]
[373455322,1753014667708,-937.24,0.00019506,2]
[373455323,1753014667718,-2155.04,0.00019506,2]
[373455324,1753014667727,-969.32,0.00019506,2]
[373455325,1753014667736,-480.0,0.00019506,2]
[373455326,1753014667746,-2293.75,0.00019506,2]
[373455327,1753014667755,-480.0,0.00019506,2]
[373455328,1753014667764,-1679.97,0.00019506,2]
[373455329,1753014667773,-1649.28,0.00019506,2]
[373455330,1753014667782,-481.48,0.00019506,2]
[373455331,1753014667792,-4949.4,0.00019506,2]
[373455332,1753014667801,-480.0,0.00019506,2]
[373455333,1753014667810,-480.0,0.00019506,2]
[373455334,1753014667819,-480.0,0.00019506,2]
[373455335,1753014667828,-780.69,0.00019506,2]
[373455336,1753014667837,-1361.96,0.00019506,2]
[373455337,1753014667846,-1646.77,0.00019506,2]
[373455338,1753014667855,-480.0,0.00019506,2]
[373455339,1753014667864,-787.28,0.00019506,2]
[373455340,1753014667873,-583.71,0.00019506,2]
[373455341,1753014667882,-1739.9,0.00019506,2]
[373455342,1753014667896,-480.0,0.00019506,2]
[373455343,1753014667905,-2239.25,0.00019506,2]
[373455344,1753014667914,-488.08,0.00019506,2]
[373455345,1753014667923,-151.0,0.00019506,2]
[373455346,1753014667932,-1000.87,0.00019506,2]
[373455347,1753014667942,-975.55,0.00019506,2]
[373455348,1753014667951,-612.5,0.00019506,2]
[373455349,1753014667960,-1266.74,0.00019506,2]
[373455350,1753014667970,-1536.88,0.00019506,2]
[373455351,1753014667979,-3466.23,0.00019506,2]
[373455352,1753014667988,-269.65,0.00019506,2]
[373455353,1753014667997,-151.0,0.00019506,2]
[373455354,1753014668007,-491.87,0.00019506,2]
[373455355,1753014668016,-244.88,0.00019506,2]
[373455356,1753014668026,-480.0,0.00019506,2]
[373455357,1753014668036,-480.0,0.00019506,2]
[373455358,1753014668045,-870.17,0.00019506,2]
[373455359,1753014668054,-480.0,0.00019506,2]
[373455360,1753014668063,-151.0,0.00019506,2]
[373455361,1753014668073,-623.28,0.00019506,2]
[373455362,1753014668082,-1120.17,0.00019506,2]
[373455363,1753014668091,-1066.19,0.00019506,2]
[373455364,1753014668100,-1692.83,0.00019506,2]
[373455365,1753014668110,-480.0,0.00019506,2]
[373455366,1753014668119,-480.0,0.00019506,2]
[373455367,1753014668129,-1127.39,0.00019506,2]
[373455368,1753014668140,-290.61084014,0.00019506,2]
[373455369,1753014668150,-480.0,0.00019506,2]
[373455370,1753014668159,-1309.68,0.00019506,2]
[373455371,1753014668169,-480.0,0.00019506,2]
[373455372,1753014668178,-2168.91,0.00019506,2]
[373455373,1753014668188,-1586.53,0.00019506,2]
[373455374,1753014668199,-5167.59,0.00019506,2]
[373455375,1753014668208,-377.15607833,0.00019506,2]
[373455376,1753014668217,-480.0,0.00019506,2]
[373455377,1753014668226,-4167.7,0.00019506,2]
[373455378,1753014668235,-2843.64,0.00019506,2]
[373455379,1753014668246,-1125.81,0.00019506,2]
[373455380,1753014668255,-1714.93,0.00019506,2]
[373455381,1753014668266,-480.0,0.00019506,2]
[373455382,1753014668276,-480.0,0.00019506,2]
[373455383,1753014668285,-485.89,0.00019506,2]
[373455384,1753014668295,-728.46,0.00019506,2]
[373455385,1753014668304,-938.16,0.00019506,2]
[373455386,1753014668313,-480.0,0.00019506,2]
[373455387,1753014668323,-480.0,0.00019506,2]
[373455388,1753014668332,-151.0,0.00019506,2]
[373455389,1753014668342,-675.77,0.00019506,2]
[373455390,1753014668352,-480.0,0.00019506,2]
[373455391,1753014668362,-480.0,0.00019506,2]
[373455392,1753014668371,-921.94,0.00019506,2]
[373455393,1753014668381,-151.0,0.00019506,2]
[373455394,1753014668393,-480.0,0.00019506,2]
[373455395,1753014668403,-583.29,0.00019506,2]
[373455396,1753014668412,-480.0,0.00019506,2]
[373455397,1753014668421,-3135.79,0.00019506,2]
[373455398,1753014668431,-1176.04,0.00019506,2]
[373455399,1753014668440,-480.0,0.00019506,2]
[373455400,1753014668450,-480.0,0.00019506,2]
[373455401,1753014668459,-1139.14,0.00019506,2]
[373455402,1753014668469,-480.0,0.00019506,2]
[373455403,1753014668478,-480.0,0.00019506,2]
[373455404,1753014668488,-200.0,0.00019514,2]
[373455405,1753014668498,-1415.97731019,0.00019516,2]
[373455406,1753014668507,-266.93644462,0.00019537,2]
[373455407,1753014668515,-255.138513,0.00019546,2]
[373455408,1753014668525,-287.16,0.00019562,2]
[373455409,1753014668534,-155.45930866,0.00019571,2]
[373455410,1753014668543,-299.56720402,0.00019578,2]
[373455411,1753014668553,-1415.97731019,0.00019589,2]
[373455412,1753014668562,-1000.0,0.000196,2]
[373455413,1753014668571,-957.99,0.000196,2]
[373455414,1753014668581,-1632.7,0.000196,2]
[373455415,1753014668591,-1786.06,0.000196,2]
[373455416,1753014668601,-6720.51,0.000196,2]
[373455417,1753014668611,-899.08,0.000196,2]
[373455418,1753014668622,-1176.45,0.000196,2]
[373455419,1753014668631,-1869.33,0.000196,2]
[373455420,1753014668646,-774.21777253,0.00019602,2]
[373455421,1753014668655,-239.84119403,0.00019608,2]
[373455422,1753014668664,-700.78,0.00019615,2]
[373455423,1753014668674,-480.0,0.00019615,2]
[373455424,1753014668685,-400.0,0.00019615,2]
[373455425,1753014668695,-480.0,0.00019615,2]
[373455426,1753014668706,-480.0,0.00019615,2]
[373455427,1753014668718,-440.0,0.00019615,2]
[373455428,1753014668728,-480.0,0.00019615,2]
[373455429,1753014668737,-480.0,0.00019615,2]
[373455430,1753014668746,-1000.0,0.00019615,2]
[373455431,1753014668755,-480.0,0.00019615,2]
[373455432,1753014668764,-480.0,0.00019615,2]
[373455433,1753014668773,-480.0,0.00019615,2]
[373455434,1753014668782,-480.0,0.00019615,2]
[373455435,1753014668791,-497.2331191,0.00019615,2]
[373455436,1753014668801,-480.0,0.00019615,2]
[373455437,1753014668810,-480.0,0.00019615,2]
[373455438,1753014668819,-500.0,0.00019615,2]
[373455439,1753014668829,-467.28,0.00019615,2]
[373455440,1753014668838,-33656.18,0.00019615,2]
[373455441,1753014668847,-3194.98,0.00019615,2]
[373455442,1753014668857,-6227.64,0.00019615,2]
[373455443,1753014668866,-308.96425414,0.00019615,2]
[373455444,1753014668876,-150.61,0.00019616,2]
[373455445,1753014668885,-151.0,0.00019616,2]
[373455446,1753014668895,-480.0,0.00019616,2]
[373455447,1753014668904,-151.0,0.00019616,2]
[373455448,1753014668913,-151.0,0.00019616,2]
[373455449,1753014668922,-151.0,0.00019616,2]
[373455450,1753014668931,-151.0,0.00019616,2]
[373455451,1753014668941,-151.0,0.00019616,2]
[373455452,1753014668950,-151.0,0.00019616,2]
[373455453,1753014668959,-480.0,0.00019616,2]
[373455454,1753014668968,-480.0,0.00019616,2]
[373455455,1753014668977,-480.0,0.00019616,2]
[373455456,1753014668986,-480.0,0.00019616,2]
[373455457,1753014668995,-480.0,0.00019616,2]
[373455458,1753014669004,-480.0,0.00019616,2]
[373455459,1753014669014,-480.0,0.00019616,2]
[373455460,1753014669023,-480.0,0.00019616,2]
[373455461,1753014669031,-397.03254633,0.00019616,2]
[373455462,1753014669041,-480.0,0.00019616,2]
[373455463,1753014669050,-480.0,0.00019616,2]
[373455464,1753014669059,-480.0,0.00019616,2]
[373455465,1753014669069,-480.0,0.00019616,2]
[373455466,1753014669078,-480.0,0.00019616,2]
[373455467,1753014669087,-480.0,0.00019616,2]
[373455468,1753014669096,-480.0,0.00019616,2]
[373455469,1753014669105,-571.22,0.00019616,2]
[373455470,1753014669115,-1149.63,0.00019616,2]
[373455471,1753014669124,-337.63049114,0.00019616,2]
[373455472,1753014669133,-480.0,0.00019616,2]
[373455473,1753014669144,-480.0,0.00019616,2]
[373455474,1753014669154,-480.0,0.00019616,2]
[373455475,1753014669163,-480.0,0.00019616,2]
[373455476,1753014669172,-1157.17,0.00019616,2]
[373455477,1753014669181,-1110.3,0.00019616,2]
[373455478,1753014669191,-480.0,0.00019616,2]
[373455479,1753014669200,-624.25,0.00019616,2]
[373455480,1753014669209,-2174.54,0.00019616,2]
[373455481,1753014669218,-797.31,0.00019616,2]
[373455482,1753014669227,-1022.195767,0.00019616,2]
[373455483,1753014669237,-480.0,0.00019616,2]
[373455484,1753014669246,-663.69,0.00019616,2]
[373455485,1753014669255,-480.0,0.00019616,2]
[373455486,1753014669264,-616.09,0.00019616,2]
[373455487,1753014669273,-480.0,0.00019616,2]
[373455488,1753014669283,-151.0,0.00019616,2]
[373455489,1753014669292,-151.634049,0.00019616,2]
[373455490,1753014669301,-1284.099981,0.00019616,2]
[373455491,1753014669310,-1246.634372,0.00019616,2]
[373455492,1753014669320,-480.0,0.00019616,2]
[373455493,1753014669330,-664.53,0.00019616,2]
[373455494,1753014669339,-480.0,0.00019616,2]
[373455495,1753014669348,-200.618341,0.00019616,2]
[373455496,1753014669358,-1646.34,0.00019616,2]
[373455497,1753014669367,-480.0,0.00019616,2]
[373455498,1753014669376,-200.618341,0.00019616,2]
[373455499,1753014669388,-480.0,0.00019616,2]
[373455500,1753014669397,-195.35256399,0.00019616,2]
[373455501,1753014669406,-480.0,0.00019616,2]
[373455502,1753014669419,-151.0,0.00019616,2]
[373455503,1753014669429,-151.0,0.00019616,2]
[373455504,1753014669438,-151.0,0.00019616,2]
[373455505,1753014669448,-480.0,0.00019616,2]
[373455506,1753014669458,-480.0,0.00019616,2]
[373455507,1753014669467,-151.0,0.00019616,2]
[373455508,1753014669477,-663.81,0.00019616,2]
[373455509,1753014669486,-151.0,0.00019616,2]
[373455510,1753014669496,-603.17,0.00019616,2]
[373455511,1753014669505,-885.52,0.00019616,2]
[373455512,1753014669515,-508.26,0.00019616,2]
[373455513,1753014669524,-646.27,0.00019616,2]
[373455514,1753014669533,-741.47,0.00019616,2]
[373455515,1753014669542,-650.94,0.00019616,2]
[373455516,1753014669552,-480.0,0.00019616,2]
[373455517,1753014669561,-2188.28,0.00019616,2]
[373455518,1753014669570,-480.0,0.00019616,2]
[373455519,1753014669579,-3039.93,0.00019616,2]
[373455520,1753014669589,-480.0,0.00019616,2]
[373455521,1753014669599,-699.61,0.00019616,2]
[373455522,1753014669608,-540.27,0.00019616,2]
[373455523,1753014669617,-480.0,0.00019616,2]
[373455524,1753014669627,-911.93,0.00019616,2]
[373455525,1753014669641,-480.0,0.00019616,2]